bitfinex/quotes_ETHUSD_20250604
["timestamp","ask_amount","ask_price","bid_price","bid_amount"]
[1749063721535,0.55,2626.7,2626.2,8.209]
[1749063721858,0.55,2626.7,2626.3,1.636]
[1749063721859,1.2958,2626.6,2626.3,1.636]
[1749063722058,1.2958,2626.6,2626.4,1.636]
[1749063722271,1.8458,2626.5,2626.4,1.636]
[1749063722925,6.81234396,2626.5,2626.4,1.636]
[1749063726771,6.26234396,2626.5,2626.4,1.636]
[1749063728027,6.26234396,2626.5,2626.3,8.209]
[1749063728223,4.96654396,2626.5,2626.3,8.209]
[1749063728428,0.4966544,2626.4,2626.3,8.209]
[1749063728730,1.7916544,2626.4,2626.3,16.082]
[1749063729272,6.75819836,2626.4,2626.3,16.082]
[1749063729429,6.26154396,2626.4,2626.3,16.082]
[1749063730882,6.26154396,2626.4,2626.3,16.073]
[1749063731083,6.26154396,2626.4,2626.3,8.209]
[1749063731234,6.26154396,2626.4,2626.3,16.073]
[1749063731424,6.88769836,2626.4,2626.3,16.073]
[1749063733469,1.9211544,2626.4,2626.3,16.073]
[1749063733631,6.26154396,2626.4,2626.3,16.073]
[1749063734471,6.26154396,2626.4,2626.3,9.836]
[1749063734675,6.26154396,2626.4,2626.3,16.073]
[1749063734968,6.26154396,2626.4,2626.3,16.075]
[1749063737344,6.26154396,2626.4,2626.3,8.209]
[1749063737543,7.43769836,2626.4,2626.3,8.209]
[1749063737880,7.43769836,2626.4,2624.4,30.0]
[1749063737881,0.55,2626.3,2624.4,30.0]
[1749063738178,4.96654396,2625.4,2624.8,14.19743]
[1749063738477,4.96654396,2625.4,2624.8,24.658998]
[1749063738691,4.96654396,2625.2,2624.8,9.299642]
[1749063738983,4.96654396,2625.4,2625.1,10.0]
[1749063739149,1.3012,2625.5,2625.2,10.0]
[1749063739355,1.3012,2625.5,2625.1,10.0]
[1749063739552,1.3012,2625.5,2625.2,10.0]
[1749063739755,1.3012,2625.5,2625.1,10.0]
[1749063740058,1.3525,2625.8,2625.2,8.583127]
[1749063740269,1.3525,2625.8,2625.2,6.238]
[1749063740764,1.3525,2625.8,2625.4,10.0]
[1749063741363,1.4078,2625.9,2625.4,10.0]
[1749063741943,1.4078,2625.9,2625.3,13.811967]
[1749063742239,1.4078,2625.9,2625.4,10.0]
[1749063742459,4.96654396,2626.2,2625.4,19.724102]
[1749063742768,4.96654396,2626.2,2625.3,25.531013]
[1749063743169,4.96654396,2625.6,2624.6,0.8775589]
[1749063743369,4.96654396,2625.6,2624.9,15.106444]
[1749063744147,4.96654396,2625.8,2624.9,15.106444]
[1749063744656,1.3637,2625.9,2624.9,15.106444]
[1749063745604,1.3637,2625.9,2625.0,34.96654396]
[1749063745809,1.3637,2625.9,2625.1,30.0]
[1749063745971,1.3637,2625.9,2625.3,28.794327]
[1749063746325,1.3637,2625.9,2624.9,10.0]
[1749063746606,4.96654396,2625.8,2625.1,6.448932]
[1749063746761,4.96654396,2625.8,2625.3,10.0]
[1749063746962,1.3637,2625.9,2625.3,4.714153]
[1749063747305,1.3637,2625.9,2625.5,2.361152]
[1749063747460,1.9967244,2625.9,2625.6,19.841]
[1749063747661,1.9967244,2625.9,2625.6,8.213]
[1749063747866,4.96654396,2625.8,2625.7,7.866]
[1749063749482,4.96654396,2625.8,2625.6,8.213]
[1749063749790,4.96654396,2625.8,2625.7,7.866]
[1749063751874,1.3637,2625.9,2625.7,7.866]
[1749063752069,1.3666,2626.2,2625.8,10.0]
[1749063752485,1.3666,2626.2,2625.7,7.866]
[1749063752669,1.3666,2626.2,2625.8,10.0]
[1749063752874,6.33314396,2626.2,2625.8,10.0]
[1749063753216,7.8170738,2626.2,2625.8,10.0]
[1749063754898,8.5061544,2626.4,2626.0,10.0]
[1749063754899,1.4115,2626.4,2626.0,10.0]
[1749063755097,1.4115,2626.4,2626.0,12.493746]
[1749063755286,1.4115,2626.4,2626.0,9.074889]
[1749063755483,6.37804396,2626.4,2625.8,10.0]
[1749063755686,6.37804396,2626.4,2625.8,19.159242]
[1749063755884,6.37804396,2626.4,2625.8,9.159242]
[1749063756692,6.37804396,2626.4,2625.9,7.866]
[1749063758225,6.37804396,2626.4,2625.9,1.628]
[1749063758426,6.37804396,2626.4,2626.0,6.238]
[1749063760716,6.37804396,2626.4,2625.8,10.0]
[1749063760915,6.37804396,2626.4,2626.1,7.865]
[1749063763622,6.37804396,2626.4,2626.2,8.212]
[1749063767949,0.56147784,2626.8,2626.2,8.212]
[1749063768087,4.96654396,2626.6,2626.2,8.212]
[1749063769408,4.96654396,2626.4,2626.2,8.212]
[1749063769814,1.3977,2626.3,2626.2,8.212]
[1749063770111,1.3977,2626.3,2626.2,16.076]
[1749063770481,6.36424396,2626.3,2626.2,16.076]
[1749063771002,6.36424396,2626.3,2626.2,8.212]
[1749063771202,7.00066836,2626.3,2626.2,16.076]
[1749063773089,7.00066836,2626.3,2626.2,8.212]
[1749063773285,7.00066836,2626.3,2626.2,16.076]
[1749063773537,6.92146836,2626.3,2626.2,9.839]
[1749063773687,6.92146836,2626.3,2626.2,16.076]
[1749063773888,7.47146836,2626.3,2626.2,8.212]
[1749063774309,1.3185,2626.1,2625.8,6.237]
[1749063774643,1.8685,2626.0,2625.9,7.864]
[1749063775830,6.83504396,2626.0,2625.9,1.627]
[1749063776001,6.83504396,2626.0,2625.9,7.864]
[1749063778239,6.83504396,2626.0,2625.9,1.627]
[1749063779438,6.83504396,2626.0,2625.9,7.864]
[1749063779637,7.51854836,2626.0,2625.9,7.864]
[1749063780706,2.5520044,2626.0,2625.9,7.864]
[1749063780920,6.83504396,2626.0,2625.8,8.213]
[1749063781116,6.83504396,2626.0,2625.9,1.628]
[1749063781315,6.83504396,2626.0,2625.9,7.866]
[1749063782617,1.8685,2626.0,2625.9,7.866]
[1749063782840,6.28504396,2626.0,2625.9,7.866]
[1749063783045,6.91354836,2626.0,2625.9,7.866]
[1749063784436,6.32024396,2626.2,2625.9,7.866]
[1749063786212,4.96654396,2626.0,2625.9,7.866]
[1749063787167,4.96654396,2626.0,2625.9,1.628]
[1749063787315,4.96654396,2626.0,2625.9,7.866]
[1749063791738,6.32024396,2626.2,2625.9,7.866]
[1749063791943,1.4163,2626.5,2626.0,10.0]
[1749063792144,4.96654396,2626.3,2626.0,10.0]
[1749063792567,4.96654396,2626.3,2625.9,7.866]
[1749063792775,4.96654396,2626.3,2626.0,10.0]
[1749063794471,4.96654396,2626.5,2626.0,13.464573]
[1749063794667,4.96654396,2626.5,2626.1,10.0]
[1749063794885,4.96654396,2626.5,2626.0,18.888933]
[1749063795063,4.96654396,2626.5,2626.0,8.888933]
[1749063795464,4.96654396,2626.5,2626.1,10.0]
[1749063796581,4.96654396,2626.5,2626.0,11.84725]
[1749063797389,1.3013,2626.7,2626.0,11.84725]
[1749063798089,4.96654396,2626.6,2626.0,11.84725]
[1749063798449,4.96654396,2626.6,2626.0,10.529406]
[1749063798654,4.96654396,2626.6,2626.0,8.888691]
[1749063802249,4.96654396,2626.6,2626.1,10.0]
[1749063802456,4.96654396,2626.6,2626.0,10.0]
[1749063802662,4.96654396,2626.6,2626.1,10.0]
[1749063802868,4.96654396,2626.6,2626.0,10.0]
[1749063803061,4.96654396,2626.6,2626.1,10.0]
[1749063803281,4.96654396,2626.6,2626.0,10.0]
[1749063803494,4.96654396,2626.6,2626.2,10.0]
[1749063803796,4.96654396,2626.6,2626.3,6.236]
[1749063803998,6.37664396,2626.4,2625.8,8.213]
[1749063804200,4.96654396,2625.9,2625.8,8.213]
[1749063804495,4.96654396,2625.9,2625.8,16.076]
[1749063804699,6.87329836,2625.9,2625.8,16.076]
[1749063804883,6.87329836,2625.9,2625.8,8.213]
[1749063805070,6.87329836,2625.9,2625.8,16.076]
[1749063806997,1.9067544,2625.9,2625.8,16.076]
[1749063807195,6.37664396,2625.9,2625.8,16.076]
[1749063807801,6.92664396,2625.9,2625.8,16.076]
[1749063809900,6.92664396,2625.9,2625.8,8.213]
[1749063810081,6.92664396,2625.9,2625.8,16.076]
[1749063811604,6.92664396,2625.9,2625.8,8.213]
[1749063811781,7.61930836,2625.9,2625.8,16.076]
[1749063812764,7.61930836,2625.9,2625.8,8.213]
[1749063812969,7.61930836,2625.9,2625.8,9.84]
[1749063813211,0.55,2625.6,2625.5,8.213]
[1749063813508,6.84024396,2625.6,2625.5,16.076]
[1749063813704,7.65663836,2625.6,2625.5,8.213]
[1749063813930,7.65663836,2625.6,2625.5,16.076]
[1749063817275,7.65663836,2625.6,2625.5,16.077]
[1749063817970,2.6900944,2625.6,2625.5,16.077]
[1749063819069,2.6900944,2625.6,2625.5,8.213]
[1749063819412,2.6900944,2625.6,2625.5,16.076]
[1749063819615,2.6900944,2625.6,2625.5,9.84]
[1749063819774,2.6900944,2625.6,2625.5,16.076]
[1749063820108,2.6900944,2625.6,2625.5,16.077]
[1749063820617,2.6900944,2625.6,2625.5,9.84]
[1749063820911,2.6900944,2625.6,2625.5,8.213]
[1749063821086,2.6900944,2625.6,2625.5,1.626]
[1749063822611,2.6900944,2625.6,2625.5,7.863]
[1749063823611,2.6900944,2625.6,2625.5,0.35422561]
[1749063823774,2.6900944,2625.6,2625.5,8.21722523]
[1749063824505,2.6900944,2625.6,2625.5,7.863]
[1749063824804,2.1400944,2625.6,2625.5,7.863]
[1749063825006,7.10663836,2625.6,2625.5,7.863]
[1749063825232,4.96654396,2625.6,2625.5,7.863]
[1749063827081,7.88,2625.8,2625.5,7.863]
[1749063827082,4.96654396,2625.8,2625.5,7.863]
[1749063827287,4.96654396,2625.9,2625.5,7.863]
[1749063827707,4.96654396,2626.1,2625.5,7.863]
[1749063827910,4.96654396,2625.9,2625.5,7.863]
[1749063830587,4.96654396,2625.7,2625.5,7.863]
[1749063831419,4.96654396,2625.7,2625.6,7.863]
[1749063832096,4.96654396,2625.7,2625.1,8.214]
[1749063832316,4.96654396,2625.7,2625.6,1.626]
[1749063832518,4.96654396,2625.7,2625.6,7.862]
[1749063833433,4.96654396,2625.7,2625.6,9.841]
[1749063834718,4.96654396,2625.7,2625.6,16.077]
[1749063836330,4.96654396,2625.7,2625.6,9.841]
[1749063836492,4.96654396,2625.7,2625.6,16.077]
[1749063841628,4.96654396,2625.7,2625.6,9.84]
[1749063842946,17.3699,2626.3,2625.6,16.075]
[1749063843151,4.96654396,2625.9,2625.6,16.075]
[1749063848226,4.96654396,2626.1,2625.6,16.075]
[1749063854120,4.96654396,2626.1,2625.7,7.249337]
[1749063854360,4.96654396,2626.1,2625.8,10.0]
[1749063854557,4.96654396,2626.7,2625.7,7.249337]
[1749063854852,4.98654396,2626.9,2625.8,1.54714194]
[1749063855015,4.98654396,2626.9,2625.9,30.3557069]
[1749063855214,4.98654396,2626.9,2626.1,27.917222]
[1749063855415,4.98654396,2626.9,2626.3,14.926836]
[1749063855621,4.98654396,2626.9,2626.5,17.8424]
[1749063855622,0.02,2626.9,2626.5,17.8424]
[1749063855842,0.02,2626.9,2626.6,10.3556669]
[1749063856123,0.02,2626.9,2626.7,0.3556669]
[1749063856321,0.02,2626.9,2626.8,8.2146669]
[1749063856733,0.02,2626.9,2626.8,8.21417943]
[1749063856920,0.02,2626.9,2626.8,8.2141782]
[1749063857132,0.02,2626.9,2626.8,8.2141784]
[1749063857751,0.02,2626.9,2626.8,8.21417944]
[1749063857960,0.02,2626.9,2626.8,7.859]
[1749063861053,0.02,2626.9,2626.8,16.071]
[1749063861829,0.02,2626.9,2626.8,19.231082]
[1749063862025,0.02,2626.9,2626.8,16.071]
[1749063862234,0.02,2626.9,2626.8,16.069]
[1749063866141,0.02,2626.9,2626.8,9.837]
[1749063866488,4.98654396,2626.9,2626.8,16.068]
[1749063868868,0.02,2626.9,2626.8,16.068]
[1749063874145,0.02,2626.9,2626.8,20.031891]
[1749063875879,0.02,2626.9,2626.8,16.068]
[1749063876681,0.02,2626.9,2626.8,19.298154]
[1749063878975,0.02,2626.9,2626.8,16.068]
[1749063879872,0.02,2626.9,2626.8,19.039247]
[1749063881066,0.02,2626.9,2626.8,19.292154]
[1749063881473,0.02,2626.9,2626.8,16.068]
[1749063881773,0.02,2626.9,2626.8,19.292154]
[1749063882185,0.02,2626.9,2626.8,18.422247]
[1749063885603,1.3524,2627.6,2626.9,30.0]
[1749063885821,4.96654396,2627.7,2626.9,30.0]
[1749063887067,0.57,2627.9,2626.8,16.068]
[1749063887068,4.98654396,2627.9,2627.1,10.0]
[1749063887268,4.96654396,2627.5,2627.3,10.0]
[1749063887498,4.96654396,2627.7,2627.2,7.851]
[1749063887998,4.96654396,2627.7,2626.9,10.0]
[1749063888203,4.96654396,2627.7,2627.3,7.851]
[1749063888400,4.96654396,2627.7,2627.0,10.0]
[1749063888609,5.46519836,2627.7,2627.2,3.804107]
[1749063888804,5.46519836,2627.7,2627.3,10.0]
[1749063888978,5.46519836,2627.7,2627.2,3.804107]
[1749063889184,5.46519836,2627.7,2627.3,10.0]
[1749063889406,4.96654396,2627.5,2626.9,5.185763]
[1749063889594,4.96654396,2627.3,2627.0,7.85]
[1749063889772,4.96654396,2627.3,2627.0,1.623]
[1749063889970,4.96654396,2627.3,2627.1,6.227]
[1749063890175,4.96654396,2627.3,2627.2,6.227]
[1749063890375,4.96654396,2627.5,2627.2,6.227]
[1749063893804,0.4986544,2627.7,2627.2,6.227]
[1749063894114,4.96654396,2627.7,2627.2,6.227]
[1749063894907,1.3186,2627.8,2627.2,6.227]
[1749063895205,4.96654396,2627.7,2627.2,6.227]
[1749063897091,4.96654396,2627.7,2627.3,8.208]
[1749063899405,1.3186,2627.8,2627.4,30.0]
[1749063899711,4.96654396,2627.7,2627.4,30.0]
[1749063900082,0.02,2627.9,2627.4,30.0]
[1749063900587,4.96654396,2627.8,2627.4,30.0]
[1749063902618,0.02,2627.9,2627.4,30.0]
[1749063902911,4.96654396,2627.8,2627.4,28.736473]
[1749063905020,0.02,2627.9,2627.4,28.736473]
[1749063905317,0.02,2627.9,2627.6,16.0]
[1749063905617,6.35994396,2628.7,2627.8,30.0]
[1749063905911,6.35994396,2628.7,2627.7,1.622]
[1749063905912,6.35994396,2628.7,2628.0,21.531549]
[1749063906085,1.4134,2628.9,2628.0,15.605642]
[1749063906285,4.96654396,2628.8,2628.0,15.605642]
[1749063906714,4.96654396,2628.8,2628.2,24.180391]
[1749063907013,4.96654396,2628.8,2628.3,1.97658022]
[1749063907224,1.4134,2628.9,2628.4,0.35458022]
[1749063907418,4.96654396,2628.6,2627.8,10.0]
[1749063907598,4.96654396,2628.4,2628.0,20.589757]
[1749063907797,4.96654396,2628.4,2628.0,11.25333]
[1749063908115,4.96654396,2628.4,2628.1,0.35461285]
[1749063908316,4.96654396,2628.4,2628.2,0.35437188]
[1749063908508,4.96654396,2628.4,2628.3,0.35437188]
[1749063908912,4.96654396,2628.4,2628.3,0.35436353]
[1749063909590,4.96654396,2628.4,2628.0,11.173061]
[1749063909927,4.96654396,2628.2,2627.5,0.51]
[1749063910089,4.96654396,2628.2,2627.7,16.0]
[1749063910294,4.96654396,2628.0,2627.6,34.857952]
[1749063910528,4.96654396,2627.8,2627.7,7.846]
[1749063913324,4.96654396,2627.9,2627.3,8.208]
[1749063913522,4.96654396,2627.4,2627.3,8.208]
[1749063913724,4.96654396,2627.4,2627.3,16.054]
[1749063914830,4.96654396,2627.4,2627.3,9.829]
[1749063915016,4.96654396,2627.4,2627.3,16.053]
[1749063916523,4.96654396,2627.7,2627.3,16.053]
[1749063917548,4.96654396,2627.5,2627.3,16.053]
[1749063917748,1.3234,2627.4,2627.3,8.208]
[1749063918050,1.3234,2627.4,2627.3,16.053]
[1749063918411,0.6289944,2627.4,2627.3,16.053]
[1749063918617,4.96654396,2627.5,2627.3,16.053]
[1749063918845,4.96654396,2627.5,2627.4,0.35460467]
[1749063919523,4.96654396,2627.5,2627.3,16.053]
[1749063919721,4.96654396,2627.5,2627.4,0.35460599]
[1749063920048,4.96654396,2627.5,2627.3,16.053]
[1749063920214,5.60166836,2627.5,2627.3,8.208]
[1749063920415,5.60166836,2627.5,2627.4,7.845]
[1749063921040,1.9347,2627.4,2627.3,8.208]
[1749063921245,1.9347,2627.4,2627.3,9.829]
[1749063921417,2.68833684,2627.4,2627.3,9.829]
[1749063923752,2.68833684,2627.4,2627.3,16.053]
[1749063928549,2.68833684,2627.4,2627.3,8.208]
[1749063928860,0.55,2627.2,2627.0,8.209]
[1749063929179,0.55,2627.2,2627.1,7.845]
[1749063929328,7.38717764,2627.2,2627.1,7.845]
[1749063929528,7.38717764,2627.2,2626.9,8.209]
[1749063929729,1.4027,2627.3,2627.0,7.845]
[1749063930041,4.96654396,2627.1,2627.0,7.845]
[1749063931958,4.96654396,2627.1,2625.6,16.65310092]
[1749063932266,1.4027,2627.3,2626.0,30.0]
[1749063932267,4.96654396,2627.0,2626.0,30.0]
[1749063933358,4.96654396,2627.0,2626.2,40.0]
[1749063933560,4.96654396,2627.0,2626.2,30.0]
[1749063934991,4.96654396,2626.8,2626.2,30.0]
[1749063935138,4.96654396,2626.4,2626.3,6.224]
[1749063935340,4.96654396,2626.4,2625.1,0.38034566]
[1749063935637,4.96654396,2626.4,2625.7,16.0]
[1749063935990,4.96654396,2626.4,2625.9,9.116542]
[1749063936467,1.3415,2626.9,2625.9,9.116542]
[1749063936468,4.96654396,2626.7,2625.9,9.116542]
[1749063937464,4.96654396,2626.7,2626.0,9.83]
[1749063937670,4.96654396,2626.7,2626.1,12.066501]
[1749063938568,4.96654396,2626.7,2626.3,15.640142]
[1749063938744,4.96654396,2626.7,2626.4,10.0]
[1749063938945,4.96654396,2626.7,2626.3,5.640142]
[1749063939245,4.96654396,2626.9,2626.4,10.0]
[1749063939484,4.96654396,2626.9,2626.3,9.8344]
[1749063939841,1.4084,2627.1,2626.3,9.8344]
[1749063940065,6.37494396,2627.1,2626.3,9.8344]
[1749063941882,4.96654396,2626.9,2626.3,9.8344]
[1749063942084,4.96654396,2626.7,2626.1,9.489288]
[1749063942267,4.96654396,2626.5,2626.4,1.621]
[1749063942585,4.96654396,2626.5,2626.4,7.846]
[1749063943397,4.96654396,2626.5,2626.0,8.209]
[1749063943684,4.96654396,2626.5,2626.4,7.845]
[1749063944669,4.96654396,2626.5,2626.4,6.224]
[1749063944969,4.96654396,2626.5,2626.4,7.845]
[1749063945185,4.96654396,2626.5,2626.4,9.83]
[1749063945901,4.96654396,2626.7,2626.4,9.83]
[1749063946597,4.96654396,2626.7,2626.5,6.224]
[1749063956726,1.3879,2627.1,2626.5,6.224]
[1749063956892,1.3895,2627.3,2626.6,8.33826]
[1749063957223,4.96654396,2627.3,2626.6,8.33826]
[1749063957884,7.88,2627.4,2626.6,8.33826]
[1749063958088,7.88,2627.4,2626.7,30.0]
[1749063958284,4.96654396,2627.5,2626.7,30.76139576]
[1749063958530,4.96654396,2627.7,2626.9,30.0]
[1749063958849,4.96654396,2627.7,2627.1,12.623583]
[1749063959049,4.98654396,2627.9,2627.3,40.0]
[1749063959236,4.98654396,2627.9,2627.4,0.3555791]
[1749063959545,4.98654396,2627.9,2627.5,6.5795754]
[1749063959686,4.98654396,2627.9,2627.6,1.97557501]
[1749063959887,0.02,2627.9,2627.7,0.35557501]
[1749063960207,4.96654396,2627.8,2627.6,1.62]
[1749063960412,4.96654396,2627.8,2627.7,8.209]
[1749063960627,4.96654396,2627.8,2627.7,8.56406664]
[1749063960830,4.96654396,2627.8,2627.7,8.209]
[1749063961137,4.96654396,2627.8,2627.7,8.56406562]
[1749063961301,4.96654396,2627.8,2627.7,8.56406742]
[1749063961493,4.96654396,2627.8,2627.7,8.56403943]
[1749063961846,0.02,2627.9,2627.7,8.56403943]
[1749063962140,4.98654396,2627.9,2627.8,0.35503667]
[1749063962297,4.98654396,2627.9,2627.7,8.209]
[1749063963029,4.98654396,2627.9,2627.8,0.35503826]
[1749063963334,4.98654396,2627.9,2627.8,0.35500594]
[1749063963732,4.98654396,2627.9,2627.7,8.209]
[1749063963887,4.98654396,2627.9,2627.8,0.35468442]
[1749063964091,4.98654396,2627.9,2627.8,0.35468443]
[1749063964291,5.48519836,2627.9,2627.8,7.842]
[1749063964493,1.8204,2627.8,2627.7,8.209]
[1749063964745,1.8204,2627.8,2627.7,9.829]
[1749063964902,1.8204,2627.8,2627.7,10.18374774]
[1749063965113,3.04761423,2627.8,2627.7,10.18374774]
[1749063965312,3.04761423,2627.8,2627.7,10.18368547]
[1749063965526,3.04761423,2627.8,2627.7,9.829]
[1749063965727,3.04761423,2627.8,2627.7,10.18368547]
[1749063965929,3.04761423,2627.8,2627.7,10.18368274]
[1749063966148,3.04761423,2627.8,2627.7,10.18369508]
[1749063966353,19.10151423,2627.8,2627.7,1.97470218]
[1749063966504,1.3243,2627.3,2625.7,40.0]
[1749063966859,25.65721423,2627.8,2625.6,5.72826351]
[1749063966860,4.96654396,2626.7,2625.9,15.214908]
[1749063967501,4.96654396,2626.7,2626.1,16.364199]
[1749063968554,4.96654396,2626.9,2626.1,16.364199]
[1749063969216,4.96654396,2626.5,2626.1,10.014728]
[1749063969415,4.96654396,2626.5,2626.2,7.842]
[1749063970341,4.96654396,2626.5,2626.3,8.340468]
[1749063971555,4.96654396,2626.5,2626.4,6.222]
[1749063972129,4.96654396,2626.5,2626.4,7.842]
[1749063972818,4.96654396,2626.7,2626.4,7.842]
[1749063976041,4.96654396,2626.9,2626.6,10.0]
[1749063976260,4.96654396,2626.9,2626.5,5.044561]
[1749063976436,4.96654396,2626.9,2626.6,10.0]
[1749063976765,4.96654396,2626.9,2626.4,7.842]
[1749063978055,4.96654396,2626.9,2626.5,10.003803]
[1749063978761,4.96654396,2626.9,2626.6,0.35482255]
[1749063978943,4.96654396,2626.9,2626.7,0.35482258]
[1749063979138,4.96654396,2626.9,2626.8,0.35482258]
[1749063979445,4.96654396,2626.9,2626.8,0.35482351]
[1749063979446,6.33549836,2626.9,2626.8,0.35482351]
[1749063979642,6.33549836,2626.9,2626.4,7.842]
[1749063979868,6.31924396,2627.2,2626.5,5.605456]
[1749063980075,4.96654396,2627.0,2626.6,0.35478578]
[1749063980231,1.3527,2627.2,2626.1,19.05047]
[1749063980232,4.96654396,2626.8,2626.1,19.05047]
[1749063980565,4.96654396,2626.8,2626.4,10.0]
[1749063980768,4.96654396,2626.8,2626.5,0.35480009]
[1749063980946,4.96654396,2626.8,2626.2,7.841]
[1749063980947,4.96654396,2626.8,2626.6,0.35480009]
[1749063981142,4.96654396,2626.8,2626.7,6.57680009]
[1749063981354,6.31924396,2627.2,2626.7,6.57680601]
[1749063981567,6.31924396,2627.2,2626.9,10.0]
[1749063981736,6.31924396,2627.2,2627.0,0.35478794]
[1749063981938,6.31924396,2627.2,2627.1,0.35478794]
[1749063982146,6.31924396,2627.2,2626.9,10.0]
[1749063982350,6.31924396,2627.2,2627.0,0.35478501]
[1749063982544,6.31924396,2627.2,2627.1,0.35478533]
[1749063982758,6.31924396,2627.2,2627.1,0.35478529]
[1749063982963,6.31924396,2627.2,2626.9,10.0]
[1749063983169,6.31924396,2627.2,2627.0,0.35475391]
[1749063983466,6.31924396,2627.2,2627.1,0.35475363]
[1749063983664,6.31924396,2627.2,2627.1,0.35475387]
[1749063983838,6.31924396,2627.2,2627.1,0.35475367]
[1749063984035,4.96654396,2627.2,2627.1,0.35475367]
[1749063984573,4.96654396,2627.2,2627.1,0.3548002]
[1749063984773,9.2664,2627.6,2627.1,0.35480098]
[1749063984993,1.3864,2627.6,2627.2,6.57681247]
[1749063985287,6.35294396,2627.6,2627.3,0.35481247]
[1749063985491,6.35294396,2627.6,2627.4,9.829]
[1749063985636,4.96654396,2627.5,2627.4,9.829]
[1749063985837,4.96654396,2627.5,2627.4,10.18377794]
[1749063986036,4.96654396,2627.5,2627.4,10.1837768]
[1749063986633,4.96654396,2627.5,2627.4,10.18375015]
[1749063986834,4.96654396,2627.5,2627.4,9.829]
[1749063987334,4.96654396,2627.5,2627.4,10.18375405]
[1749063988073,0.02,2627.9,2627.4,9.828]
[1749063988262,4.96654396,2627.5,2627.4,9.828]
[1749063989164,4.96654396,2627.5,2627.4,16.049]
[1749063990262,4.96654396,2627.5,2627.4,7.84]
[1749063990462,4.96654396,2627.5,2626.5,0.76146523]
[1749063990674,4.96654396,2627.3,2626.3,30.76152577]
[1749063990874,4.96654396,2627.3,2626.4,30.0]
[1749063991278,4.96654396,2627.1,2626.4,30.0]
[1749063991463,4.96654396,2627.1,2626.3,0.76152365]
[1749063991669,4.96654396,2627.1,2626.6,13.014693]
[1749063992781,4.96654396,2627.1,2626.8,2.344222]
[1749063993078,4.96654396,2627.1,2627.0,10.0]
[1749063993253,4.96654396,2627.1,2626.9,10.0]
[1749063993455,4.96654396,2627.1,2627.0,10.0]
[1749063993656,5.46319836,2627.1,2626.4,21.585008]
[1749063993891,0.6794344,2627.8,2626.4,21.585008]
[1749063993892,4.96654396,2626.8,2626.4,21.585008]
[1749063994086,0.6794344,2627.8,2626.4,21.585008]
[1749063994087,4.96654396,2626.6,2626.4,21.585008]
[1749063994258,4.96654396,2626.6,2626.5,6.221]
[1749063995198,4.96654396,2626.8,2626.5,6.221]
[1749063996404,4.96654396,2626.8,2626.7,10.0]
[1749063996605,4.96654396,2627.0,2626.7,4.214722]
[1749063996788,1.2758,2627.3,2626.8,6.221]
[1749063996987,4.96654396,2627.1,2626.9,10.0]
[1749063997214,4.96654396,2627.1,2626.8,6.221]
[1749063997509,4.96654396,2627.1,2627.0,10.0]
[1749063997716,4.96654396,2627.1,2626.9,9.828]
[1749063998313,4.96654396,2627.6,2627.0,8.742596]
[1749063998516,4.96654396,2627.6,2627.1,10.0]
[1749063998810,4.96654396,2627.6,2627.0,5.281455]
[1749063998811,4.96654396,2627.6,2627.3,5.575693]
[1749063999010,4.96654396,2627.6,2627.4,6.221]
[1749063999215,4.96654396,2627.6,2627.5,1.619]
[1749063999517,6.59729158,2627.6,2627.5,1.619]
[1749064000014,0.57,2627.9,2627.7,10.0]
[1749064000015,0.02,2627.9,2627.7,10.0]
[1749064000193,0.02,2627.9,2627.8,0.35496726]
[1749064000388,0.02,2627.9,2627.8,0.35490261]
[1749064000593,0.02,2627.9,2627.8,0.35488192]
[1749064000790,4.98654396,2627.9,2627.8,0.35446583]
[1749064001205,4.98654396,2627.9,2627.6,10.0]
[1749064002107,4.98654396,2627.9,2627.7,8.19348185]
[1749064002309,4.98654396,2627.9,2627.8,0.35449]
[1749064002613,4.98654396,2627.9,2627.8,0.35449105]
[1749064002820,4.98654396,2627.9,2627.7,7.839]
[1749064003600,4.98654396,2627.9,2627.8,0.35449167]
[1749064003991,4.98654396,2627.9,2627.8,6.57449167]
[1749064004414,4.98654396,2627.9,2627.8,6.22]
[1749064004640,4.98654396,2627.9,2627.8,6.57435209]
[1749064004925,4.98654396,2627.9,2627.8,6.57432902]
[1749064005124,4.98654396,2627.9,2627.8,6.57432805]
[1749064005422,4.98654396,2627.9,2627.8,6.57432539]
[1749064006004,4.98654396,2627.9,2627.8,6.22]
[1749064008130,0.02,2627.9,2627.8,6.22]
[1749064008696,0.02,2627.9,2627.8,7.837]
[1749064010495,0.02,2627.9,2627.1,0.76129184]
[1749064010661,0.02,2627.9,2627.3,12.402215]
[1749064012177,4.96654396,2627.8,2627.3,8.847853]
[1749064012368,4.96654396,2627.8,2626.9,8.719]
[1749064012369,4.96654396,2627.8,2627.0,30.0]
[1749064012569,4.96654396,2627.8,2627.1,10.0]
[1749064012767,4.96654396,2627.3,2627.2,1.618]
[1749064012944,4.96654396,2627.3,2627.2,7.837]
[1749064013156,6.25174396,2627.3,2626.9,8.209]
[1749064013474,6.25174396,2627.3,2627.2,1.618]
[1749064013475,1.2852,2627.3,2627.2,1.618]
[1749064014493,6.25174396,2627.3,2627.2,1.618]
[1749064014862,6.25174396,2627.3,2627.2,7.837]
[1749064015592,6.25174396,2627.3,2627.2,1.618]
[1749064016566,6.25174396,2627.3,2627.1,8.207]
[1749064016765,1.939,2627.2,2627.1,8.207]
[1749064017074,2.6295544,2627.2,2627.1,9.825]
[1749064017274,1.389,2627.1,2625.6,0.51]